[Event "*** Titled Tuesday Blitz"]
[Site "Chess.com"]
[Date "2020.10.20"]
[Round "9"]
[White "GukeshDommaraju"]
[Black "VMikhalevski"]
[Result "0-1"]
[WhiteElo "2817"]
[BlackElo "2733"]
[TimeControl "180+1"]
[EndTime "11:49:38 PDT"]
[Termination "VMikhalevski won by resignation"]

1. d4 {[%clk 0:03:00.9]} 1... Nf6 {[%clk 0:02:59.5]} 2. Nf3 {[%clk 0:03:01.1]}
2... g6 {[%clk 0:02:59.5]} 3. c4 {[%clk 0:03:00.5]} 3... Bg7 {[%clk 0:02:59.6]}
4. Nc3 {[%clk 0:03:01]} 4... d5 {[%clk 0:03:00.1]} 5. cxd5 {[%clk 0:03:01]} 5...
Nxd5 {[%clk 0:03:00]} 6. e4 {[%clk 0:03:01.6]} 6... Nxc3 {[%clk 0:03:00.6]} 7.
bxc3 {[%clk 0:03:02.5]} 7... c5 {[%clk 0:03:01]} 8. Be3 {[%clk 0:03:02]} 8...
Nc6 {[%clk 0:02:58.9]} 9. Rc1 {[%clk 0:02:50.6]} 9... Qa5 {[%clk 0:02:45.3]} 10.
Qd2 {[%clk 0:02:47.4]} 10... O-O {[%clk 0:02:44.2]} 11. d5 {[%clk 0:02:45.2]}
11... Rd8 {[%clk 0:02:42.9]} 12. Bd3 {[%clk 0:02:22.8]} 12... e6 {[%clk
0:02:24.5]} 13. c4 {[%clk 0:01:59.9]} 13... Qxd2+ {[%clk 0:02:20.7]} 14. Kxd2
{[%clk 0:01:59.7]} 14... Nb4 {[%clk 0:02:19.9]} 15. Bb1 {[%clk 0:01:51.2]} 15...
b6 {[%clk 0:02:17.8]} 16. a3 {[%clk 0:01:50.9]} 16... Nc6 {[%clk 0:02:14.3]} 17.
Bd3 {[%clk 0:01:47.6]} 17... Na5 {[%clk 0:02:12.6]} 18. Rb1 {[%clk 0:01:40.4]}
18... h6 {[%clk 0:02:09.3]} 19. h4 {[%clk 0:01:37.3]} 19... f5 {[%clk
0:02:07.4]} 20. Ke2 {[%clk 0:01:28.6]} 20... Ba6 {[%clk 0:01:56.4]} 21. dxe6
{[%clk 0:00:38.7]} 21... fxe4 {[%clk 0:01:53.5]} 22. Bxe4 {[%clk 0:00:38.6]}
22... Bxc4+ {[%clk 0:01:51]} 23. Ke1 {[%clk 0:00:38.9]} 23... Bd3 {[%clk
0:01:43.9]} 24. Bxa8 {[%clk 0:00:25.7]} 24... Bxb1 {[%clk 0:01:42.4]} 25. Nd2
{[%clk 0:00:15.6]} 25... Rxa8 {[%clk 0:01:36.5]} 26. Nxb1 {[%clk 0:00:15.2]}
26... Re8 {[%clk 0:01:37]} 27. Ke2 {[%clk 0:00:15.3]} 27... Rxe6 {[%clk
0:01:36.2]} 28. Rd1 {[%clk 0:00:16.2]} 28... Kf7 {[%clk 0:01:35.1]} 29. Rd7+
{[%clk 0:00:15.6]} 29... Re7 {[%clk 0:01:34.9]} 30. Rd8 {[%clk 0:00:16]} 30...
Nc4 {[%clk 0:01:34]} 31. Kd3 {[%clk 0:00:15.8]} 31... Nxe3 {[%clk 0:01:28.9]}
32. fxe3 {[%clk 0:00:16.7]} 32... Bf6 {[%clk 0:01:27.2]} 33. Ra8 {[%clk
0:00:15.9]} 33... Bxh4 {[%clk 0:01:26.7]} 34. Nd2 {[%clk 0:00:16.2]} 34... Rd7+
{[%clk 0:01:21.3]} 35. Ke2 {[%clk 0:00:15.9]} 35... Be7 {[%clk 0:01:16.5]} 36.
e4 {[%clk 0:00:15.4]} 36... Ke6 {[%clk 0:01:16.1]} 37. a4 {[%clk 0:00:14.5]}
37... h5 {[%clk 0:01:15.1]} 38. g3 {[%clk 0:00:14.5]} 38... g5 {[%clk
0:01:14.6]} 39. Rh8 {[%clk 0:00:13.7]} 39... h4 {[%clk 0:01:14.2]} 40. Rh6+
{[%clk 0:00:14.1]} 40... Kf7 {[%clk 0:01:11.7]} 41. gxh4 {[%clk 0:00:14.6]}
41... gxh4 {[%clk 0:01:11.3]} 42. Nf3 {[%clk 0:00:14.5]} 42... Kg7 {[%clk
0:01:11.3]} 43. Re6 {[%clk 0:00:15]} 43... h3 {[%clk 0:01:09]} 44. Kf2 {[%clk
0:00:11.2]} 44... Bd8 {[%clk 0:01:05.8]} 45. Kg3 {[%clk 0:00:10.9]} 45... Rd3
{[%clk 0:01:05.6]} 46. Kg4 {[%clk 0:00:10.1]} 46... Ra3 {[%clk 0:00:59.7]} 47.
Rd6 {[%clk 0:00:07.9]} 47... Be7 {[%clk 0:00:53.4]} 48. Rd7 {[%clk 0:00:08]}
48... Kf6 {[%clk 0:00:53.4]} 49. Rxa7 {[%clk 0:00:08.1]} 49... Re3 {[%clk
0:00:50]} 50. Ra6 {[%clk 0:00:06.3]} 50... Rxe4+ {[%clk 0:00:48.7]} 51. Kxh3
{[%clk 0:00:06.7]} 51... Bd8 {[%clk 0:00:47.5]} 52. a5 {[%clk 0:00:03.4]} 52...
Ra4 {[%clk 0:00:47.3]} 53. Ra8 {[%clk 0:00:03.8]} 53... Ke7 {[%clk 0:00:45.7]}
54. a6 {[%clk 0:00:03.9]} 54... Kd7 {[%clk 0:00:42.9]} 55. a7 {[%clk 0:00:04.4]}
55... Bc7 {[%clk 0:00:41.9]} 56. Ng5 {[%clk 0:00:02.9]} 56... Kc6 {[%clk
0:00:39.7]} 57. Ne6 {[%clk 0:00:03.3]} 57... Kb7 {[%clk 0:00:33.6]} 58. Rg8
{[%clk 0:00:03.5]} 58... Rxa7 {[%clk 0:00:32.9]} 59. Rg7 {[%clk 0:00:04]} 59...
Kc6 {[%clk 0:00:32.5]} 60. Kg4 {[%clk 0:00:04.4]} 60... Bb8 {[%clk 0:00:31.3]}
61. Nd8+ {[%clk 0:00:04.8]} 61... Kb5 {[%clk 0:00:30.4]} 62. Rg6 {[%clk
0:00:05.4]} 62... Ra4+ {[%clk 0:00:29.5]} 63. Kf5 {[%clk 0:00:05]} 63... Ra1
{[%clk 0:00:27.7]} 64. Nc6 {[%clk 0:00:04.8]} 64... Bh2 {[%clk 0:00:26.4]} 65.
Ke4 {[%clk 0:00:04.9]} 65... Rd1 {[%clk 0:00:25.8]} 66. Na7+ {[%clk 0:00:04.4]}
66... Kc4 {[%clk 0:00:24.8]} 67. Rxb6 {[%clk 0:00:03.7]} 67... Re1+ {[%clk
0:00:23.2]} 68. Kf3 {[%clk 0:00:03.9]} 68... Kd5 {[%clk 0:00:20.5]} 69. Nb5
{[%clk 0:00:03.8]} 69... Be5 {[%clk 0:00:17.2]} 70. Rb8 {[%clk 0:00:03.3]} 70...
Kc4 {[%clk 0:00:15.2]} 71. Kf2 {[%clk 0:00:04.2]} 71... Re4 {[%clk 0:00:13.4]}
72. Rb7 {[%clk 0:00:03.6]} 72... Bd4+ {[%clk 0:00:11.1]} 73. Kf3 {[%clk
0:00:03.4]} 73... Re3+ {[%clk 0:00:10.7]} 74. Kf4 {[%clk 0:00:03.8]} 74... Re6
{[%clk 0:00:10.8]} 75. Nc7 {[%clk 0:00:03.8]} 75... Be5+ {[%clk 0:00:08.4]} 76.
Kf5 {[%clk 0:00:03.7]} 76... Re7 {[%clk 0:00:08.5]} 77. Nb5 {[%clk 0:00:01.9]}
77... Rxb7 {[%clk 0:00:08]} 0-1

[Event "*** Titled Tuesday Blitz"]
[Site "Chess.com"]
[Date "2020.10.20"]
[Round "9"]
[White "alejanchess73"]
[Black "anon569"]
[Result "0-1"]
[WhiteElo "2393"]
[BlackElo "2269"]
[TimeControl "180+1"]
[EndTime "11:49:50 PDT"]
[Termination "anon569 won on time"]

1. d4 {[%clk 0:03:00.9]} 1... Nf6 {[%clk 0:02:57.3]} 2. c4 {[%clk 0:03:00.9]}
2... e6 {[%clk 0:02:56.4]} 3. Nc3 {[%clk 0:03:00.3]} 3... Bb4 {[%clk 0:02:54.6]}
4. e3 {[%clk 0:03:00.6]} 4... b6 {[%clk 0:02:49.4]} 5. Ne2 {[%clk 0:02:59.1]}
5... c5 {[%clk 0:02:46.6]} 6. a3 {[%clk 0:02:59.1]} 6... Ba5 {[%clk 0:02:44.7]}
7. dxc5 {[%clk 0:02:55.8]} 7... bxc5 {[%clk 0:02:40.6]} 8. Qd6 {[%clk
0:02:50.7]} 8... Ne4 {[%clk 0:02:34.3]} 9. Qe5 {[%clk 0:02:34.8]} 9... Nxc3
{[%clk 0:02:13.5]} 10. Nxc3 {[%clk 0:02:32.9]} 10... Qf6 {[%clk 0:02:08.9]} 11.
Qxf6 {[%clk 0:02:28.9]} 11... gxf6 {[%clk 0:02:05.9]} 12. Bd2 {[%clk 0:02:29.4]}
12... Nc6 {[%clk 0:02:00]} 13. Ne4 {[%clk 0:02:22.6]} 13... Bxd2+ {[%clk
0:01:34.6]} 14. Kxd2 {[%clk 0:02:23.5]} 14... Na5 {[%clk 0:01:34.8]} 15. Kc3
{[%clk 0:02:18.4]} 15... Ke7 {[%clk 0:01:22.6]} 16. Nxc5 {[%clk 0:02:16.7]}
16... d6 {[%clk 0:01:21.7]} 17. Nb3 {[%clk 0:02:01.7]} 17... Nxb3 {[%clk
0:01:05.1]} 18. Kxb3 {[%clk 0:02:02.6]} 18... Bb7 {[%clk 0:01:05.5]} 19. f3
{[%clk 0:02:00.5]} 19... f5 {[%clk 0:01:01.7]} 20. Rc1 {[%clk 0:01:56.3]} 20...
Rab8 {[%clk 0:01:00.8]} 21. Ka2 {[%clk 0:01:50.1]} 21... Rhc8 {[%clk 0:00:49.6]}
22. Bd3 {[%clk 0:01:43.8]} 22... Bc6 {[%clk 0:00:32.8]} 23. b3 {[%clk
0:01:36.1]} 23... Rg8 {[%clk 0:00:10.4]} 24. Rc2 {[%clk 0:01:32.8]} 24... Rg5
{[%clk 0:00:10.2]} 25. Rd1 {[%clk 0:01:26.5]} 25... Rbg8 {[%clk 0:00:09.6]} 26.
Bf1 {[%clk 0:01:27.1]} 26... Rh5 {[%clk 0:00:09.5]} 27. h3 {[%clk 0:01:27.1]}
27... Rhg5 {[%clk 0:00:09.6]} 28. Rcd2 {[%clk 0:01:26.2]} 28... d5 {[%clk
0:00:08.5]} 29. c5 {[%clk 0:01:22.8]} 29... a5 {[%clk 0:00:07.8]} 30. a4 {[%clk
0:01:22.5]} 30... Rb8 {[%clk 0:00:06.8]} 31. Rd4 {[%clk 0:01:21.8]} 31... Rgg8
{[%clk 0:00:05.7]} 32. Rh4 {[%clk 0:01:20.7]} 32... Rgc8 {[%clk 0:00:04.7]} 33.
Rc1 {[%clk 0:01:13.4]} 33... Bd7 {[%clk 0:00:03.7]} 34. Rxh7 {[%clk 0:01:08.6]}
34... Rb4 {[%clk 0:00:04.1]} 35. Ka3 {[%clk 0:01:03.9]} 35... Rcb8 {[%clk
0:00:03.4]} 36. Rc3 {[%clk 0:01:03.9]} 36... Bc6 {[%clk 0:00:03.6]} 37. Bd3
{[%clk 0:00:51.2]} 37... Kf6 {[%clk 0:00:02.9]} 38. Bc2 {[%clk 0:00:50.2]} 38...
Kg6 {[%clk 0:00:02.6]} 39. g4 {[%clk 0:00:41.3]} 39... Kxh7 {[%clk 0:00:02.8]}
40. gxf5 {[%clk 0:00:42.2]} 40... exf5 {[%clk 0:00:03.2]} 41. Bxf5+ {[%clk
0:00:41.8]} 41... Kh6 {[%clk 0:00:03.8]} 42. Bc2 {[%clk 0:00:37]} 42... Rg8
{[%clk 0:00:04.2]} 43. e4 {[%clk 0:00:35.8]} 43... Rg2 {[%clk 0:00:04.6]} 44.
exd5 {[%clk 0:00:35.1]} 44... Bxd5 {[%clk 0:00:05.1]} 45. c6 {[%clk 0:00:35.7]}
45... Bxc6 {[%clk 0:00:03]} 46. Rxc6+ {[%clk 0:00:35.6]} 46... Kg7 {[%clk
0:00:03.6]} 47. Rc5 {[%clk 0:00:33.7]} 47... Rd4 {[%clk 0:00:03.5]} 48. Be4
{[%clk 0:00:31.5]} 48... Rdd2 {[%clk 0:00:01.9]} 49. Rxa5 {[%clk 0:00:31.5]}
49... Rh2 {[%clk 0:00:01.8]} 50. Rg5+ {[%clk 0:00:30.9]} 50... Kf6 {[%clk
0:00:01.2]} 51. Rh5 {[%clk 0:00:31.4]} 51... Ra2+ {[%clk 0:00:01.6]} 52. Kb4
{[%clk 0:00:31.8]} 52... Rad2 {[%clk 0:00:02]} 53. a5 {[%clk 0:00:31.4]} 53...
Ke7 {[%clk 0:00:02.6]} 54. a6 {[%clk 0:00:31]} 54... Ra2 {[%clk 0:00:03.2]} 55.
Kb5 {[%clk 0:00:30]} 55... Ra3 {[%clk 0:00:02]} 56. Bd5 {[%clk 0:00:29.3]} 56...
Rha2 {[%clk 0:00:02.6]} 57. Rh6 {[%clk 0:00:27.5]} 57... Ra5+ {[%clk 0:00:03]}
58. Kc4 {[%clk 0:00:27.3]} 58... Rxa6 {[%clk 0:00:03.5]} 59. Rh7 {[%clk
0:00:27.5]} 59... Rb6 {[%clk 0:00:02.6]} 60. Rxf7+ {[%clk 0:00:26.5]} 60... Ke8
{[%clk 0:00:03.2]} 61. Rc7 {[%clk 0:00:26]} 61... Rc2+ {[%clk 0:00:03.4]} 62.
Kd4 {[%clk 0:00:24.8]} 62... Rxc7 {[%clk 0:00:04.1]} 63. Bc4 {[%clk 0:00:24.2]}
63... Rh6 {[%clk 0:00:04]} 64. f4 {[%clk 0:00:22.5]} 64... Rxh3 {[%clk
0:00:04.4]} 65. f5 {[%clk 0:00:23.1]} 65... Rh4+ {[%clk 0:00:04.4]} 66. Ke5
{[%clk 0:00:23.5]} 66... Re7+ {[%clk 0:00:04.9]} 67. Kd6 {[%clk 0:00:21.2]}
67... Rh6+ {[%clk 0:00:05.2]} 68. Be6 {[%clk 0:00:20.7]} 68... Rf6 {[%clk
0:00:05.7]} 69. Ke5 {[%clk 0:00:18.9]} 69... Rexe6+ {[%clk 0:00:05.9]} 70. fxe6
{[%clk 0:00:18.2]} 70... Rf3 {[%clk 0:00:06.4]} 71. b4 {[%clk 0:00:18.5]} 71...
Rb3 {[%clk 0:00:07]} 72. Kd5 {[%clk 0:00:18.9]} 72... Rxb4 {[%clk 0:00:07.3]}
73. Kc5 {[%clk 0:00:19.8]} 73... Rh4 {[%clk 0:00:06.4]} 74. Kd6 {[%clk 0:00:20]}
74... Rh5 {[%clk 0:00:04.9]} 75. e7 {[%clk 0:00:19.4]} 75... Rh6+ {[%clk
0:00:04.1]} 76. Ke5 {[%clk 0:00:18.9]} 76... Kxe7 {[%clk 0:00:04.7]} 0-1

[Event "*** Titled Tuesday Blitz"]
[Site "Chess.com"]
[Date "2020.10.20"]
[Round "9"]
[White "BlackBoarder"]
[Black "Stalri"]
[Result "1-0"]
[WhiteElo "2598"]
[BlackElo "2206"]
[TimeControl "180+1"]
[EndTime "11:49:51 PDT"]
[Termination "BlackBoarder won by checkmate"]

1. e4 {[%clk 0:03:00.9]} 1... c5 {[%clk 0:02:58.3]} 2. Nf3 {[%clk 0:03:00.7]}
2... Nc6 {[%clk 0:02:54.2]} 3. Bb5 {[%clk 0:03:00.3]} 3... g6 {[%clk 0:02:52.5]}
4. Bxc6 {[%clk 0:02:59.3]} 4... dxc6 {[%clk 0:02:53.4]} 5. d3 {[%clk 0:02:58]}
5... Bg7 {[%clk 0:02:53.9]} 6. h3 {[%clk 0:02:58.3]} 6... Nf6 {[%clk 0:02:53.8]}
7. O-O {[%clk 0:02:57.6]} 7... O-O {[%clk 0:02:53.9]} 8. Nc3 {[%clk 0:02:56]}
8... e5 {[%clk 0:02:53.5]} 9. Nxe5 {[%clk 0:02:50.9]} 9... Nxe4 {[%clk
0:02:52.1]} 10. Nxe4 {[%clk 0:02:50.8]} 10... Bxe5 {[%clk 0:02:48.6]} 11. Nxc5
{[%clk 0:02:50.7]} 11... Bc7 {[%clk 0:02:40.6]} 12. Ne4 {[%clk 0:02:42.4]} 12...
Bf5 {[%clk 0:02:24.5]} 13. Qf3 {[%clk 0:02:38.8]} 13... f6 {[%clk 0:01:54.7]}
14. Bf4 {[%clk 0:02:29.8]} 14... Bb6 {[%clk 0:01:41.9]} 15. Rfe1 {[%clk
0:02:20.4]} 15... Qd4 {[%clk 0:01:36.8]} 16. c3 {[%clk 0:02:11.7]} 16... Qd5
{[%clk 0:01:35.7]} 17. d4 {[%clk 0:02:07.8]} 17... Kg7 {[%clk 0:01:30.5]} 18.
Nd6 {[%clk 0:01:52.2]} 18... Qxf3 {[%clk 0:01:24.9]} 19. Nxf5+ {[%clk
0:01:42.2]} 19... gxf5 {[%clk 0:01:22.2]} 20. gxf3 {[%clk 0:01:42.1]} 20... Kf7
{[%clk 0:01:21.8]} 21. Re2 {[%clk 0:01:36.3]} 21... Rad8 {[%clk 0:01:02.6]} 22.
Rae1 {[%clk 0:01:34.7]} 22... Rd7 {[%clk 0:01:02.2]} 23. Re6 {[%clk 0:01:23.8]}
23... a6 {[%clk 0:00:50.8]} 24. Bd6 {[%clk 0:01:00]} 24... Rg8+ {[%clk
0:00:50.6]} 25. Kf1 {[%clk 0:00:58.7]} 25... Bd8 {[%clk 0:00:48.8]} 26. Bg3
{[%clk 0:00:50.6]} 26... Rd5 {[%clk 0:00:37.1]} 27. Rd6 {[%clk 0:00:33.4]} 27...
Rxd6 {[%clk 0:00:29.1]} 28. Bxd6 {[%clk 0:00:34.3]} 28... Rg6 {[%clk 0:00:27.4]}
29. c4 {[%clk 0:00:29.6]} 29... Rh6 {[%clk 0:00:22.6]} 30. Kg2 {[%clk
0:00:29.6]} 30... Rg6+ {[%clk 0:00:22.9]} 31. Kh2 {[%clk 0:00:30]} 31... Rg8
{[%clk 0:00:22.8]} 32. b3 {[%clk 0:00:21]} 32... Rh8 {[%clk 0:00:20.7]} 33. Kg3
{[%clk 0:00:12.3]} 33... Rg8+ {[%clk 0:00:20.5]} 34. Kf4 {[%clk 0:00:12.6]}
34... Rg5 {[%clk 0:00:20.7]} 35. d5 {[%clk 0:00:09.6]} 35... Ba5 {[%clk
0:00:20.6]} 36. Re7+ {[%clk 0:00:08.5]} 36... Kg6 {[%clk 0:00:20.3]} 37. Ke3
{[%clk 0:00:04.8]} 37... cxd5 {[%clk 0:00:19.3]} 38. cxd5 {[%clk 0:00:04.8]}
38... f4+ {[%clk 0:00:18.4]} 39. Ke4 {[%clk 0:00:03.6]} 39... Rg1 {[%clk
0:00:07.4]} 40. Rxb7 {[%clk 0:00:02.7]} 40... Rd1 {[%clk 0:00:05.8]} 41. Bxf4
{[%clk 0:00:02.3]} 41... f5+ {[%clk 0:00:05.8]} 42. Ke3 {[%clk 0:00:01.9]} 42...
Rxd5 {[%clk 0:00:05.3]} 43. Bc7 {[%clk 0:00:01.5]} 43... Bd2+ {[%clk 0:00:04.5]}
44. Ke2 {[%clk 0:00:01.8]} 44... Bg5 {[%clk 0:00:05]} 45. Rb6+ {[%clk
0:00:02.2]} 45... Kh5 {[%clk 0:00:05]} 46. Rxa6 {[%clk 0:00:02.7]} 46... Rd2+
{[%clk 0:00:05.1]} 47. Kf1 {[%clk 0:00:02.8]} 47... Rc2 {[%clk 0:00:05.7]} 48.
f4 {[%clk 0:00:03.3]} 48... Be7 {[%clk 0:00:04.6]} 49. Be5 {[%clk 0:00:03.3]}
49... Bc5 {[%clk 0:00:04.5]} 50. f3 {[%clk 0:00:03.3]} 50... Rf2+ {[%clk
0:00:04.4]} 51. Ke1 {[%clk 0:00:03.8]} 51... Rxf3 {[%clk 0:00:04.6]} 52. Bg7
{[%clk 0:00:03.9]} 52... Kh4 {[%clk 0:00:04.5]} 53. Rh6+ {[%clk 0:00:03.5]}
53... Kg3 {[%clk 0:00:05]} 54. Be5 {[%clk 0:00:03.8]} 54... Rf2 {[%clk
0:00:04.5]} 55. Rxh7 {[%clk 0:00:03.7]} 55... Kf3 {[%clk 0:00:04.7]} 56. Re7
{[%clk 0:00:03.9]} 56... Be3 {[%clk 0:00:04.6]} 57. Kd1 {[%clk 0:00:03.5]} 57...
Rxa2 {[%clk 0:00:03.8]} 58. Bc3 {[%clk 0:00:02.9]} 58... Rf2 {[%clk 0:00:02.5]}
59. b4 {[%clk 0:00:03]} 59... Bxf4 {[%clk 0:00:02.7]} 60. b5 {[%clk 0:00:03.1]}
60... Rg2 {[%clk 0:00:02.5]} 61. b6 {[%clk 0:00:02.9]} 61... Rg6 {[%clk
0:00:02.9]} 62. b7 {[%clk 0:00:03.1]} 62... Rb6 {[%clk 0:00:03.5]} 63. Kc2
{[%clk 0:00:03.5]} 63... Rc6 {[%clk 0:00:03.3]} 64. Kd3 {[%clk 0:00:03.7]} 64...
Rb6 {[%clk 0:00:03.3]} 65. Bd4 {[%clk 0:00:04.2]} 65... Rb5 {[%clk 0:00:02.7]}
66. Ba7 {[%clk 0:00:04.3]} 66... Rb1 {[%clk 0:00:01.8]} 67. Kc4 {[%clk
0:00:04.7]} 67... Bg3 {[%clk 0:00:02.1]} 68. h4 {[%clk 0:00:04]} 68... Kg2
{[%clk 0:00:01.8]} 69. h5 {[%clk 0:00:04.2]} 69... Bd6 {[%clk 0:00:01.8]} 70.
Rd7 {[%clk 0:00:03.9]} 70... Be5 {[%clk 0:00:02.2]} 71. h6 {[%clk 0:00:04.2]}
71... f4 {[%clk 0:00:02.6]} 72. h7 {[%clk 0:00:04.5]} 72... f3 {[%clk
0:00:03.1]} 73. Re7 {[%clk 0:00:05]} 73... Bd6 {[%clk 0:00:03]} 74. h8=Q {[%clk
0:00:04.2]} 74... Bxe7 {[%clk 0:00:03.4]} 75. Qg7+ {[%clk 0:00:04.7]} 75... Kf1
{[%clk 0:00:03.4]} 76. Qxe7 {[%clk 0:00:05.1]} 76... f2 {[%clk 0:00:03.9]} 77.
Bxf2 {[%clk 0:00:05.3]} 77... Kxf2 {[%clk 0:00:02.8]} 78. Kc5 {[%clk 0:00:05.6]}
78... Rc1+ {[%clk 0:00:02.1]} 79. Kb6 {[%clk 0:00:06]} 79... Rb1+ {[%clk
0:00:03]} 80. Ka7 {[%clk 0:00:06.4]} 80... Kf3 {[%clk 0:00:03.9]} 81. b8=Q
{[%clk 0:00:05.9]} 81... Ra1+ {[%clk 0:00:04.5]} 82. Kb7 {[%clk 0:00:06.2]}
82... Rb1+ {[%clk 0:00:05.4]} 83. Kc8 {[%clk 0:00:06.7]} 83... Rc1+ {[%clk
0:00:06.3]} 84. Kd8 {[%clk 0:00:07.1]} 84... Rd1+ {[%clk 0:00:07.2]} 85. Ke8
{[%clk 0:00:07.6]} 85... Rf1 {[%clk 0:00:07.3]} 86. Qbe5 {[%clk 0:00:06.6]}
86... Kg2 {[%clk 0:00:08.2]} 87. Q7g7+ {[%clk 0:00:06.5]} 87... Kh1 {[%clk
0:00:08.3]} 88. Qh5# {[%clk 0:00:06.4]} 1-0

[Event "*** Titled Tuesday Blitz"]
[Site "Chess.com"]
[Date "2020.10.20"]
[Round "9"]
[White "PLAYER_2006_M"]
[Black "ExtremeLearner"]
[Result "1-0"]
[WhiteElo "2520"]
[BlackElo "2378"]
[TimeControl "180+1"]
[EndTime "11:50:05 PDT"]
[Termination "PLAYER_2006_M won by resignation"]

1. d4 {[%clk 0:03:00.9]} 1... Nf6 {[%clk 0:02:56.8]} 2. Nc3 {[%clk 0:03:00.5]}
2... d5 {[%clk 0:02:54.8]} 3. Bf4 {[%clk 0:03:00.2]} 3... e6 {[%clk 0:02:47.3]}
4. Nb5 {[%clk 0:02:59.5]} 4... Na6 {[%clk 0:02:31.6]} 5. e3 {[%clk 0:02:58.4]}
5... c6 {[%clk 0:02:28.3]} 6. Nc3 {[%clk 0:02:58.4]} 6... Nc7 {[%clk 0:02:23.1]}
7. Bd3 {[%clk 0:02:53.9]} 7... Bd6 {[%clk 0:02:19.4]} 8. Qf3 {[%clk 0:02:52.7]}
8... O-O {[%clk 0:02:14.6]} 9. g4 {[%clk 0:02:49.1]} 9... Bxf4 {[%clk
0:01:53.9]} 10. exf4 {[%clk 0:02:46.3]} 10... a6 {[%clk 0:01:48.5]} 11. g5
{[%clk 0:02:45]} 11... Nfe8 {[%clk 0:01:46.3]} 12. Nge2 {[%clk 0:02:44.3]} 12...
f5 {[%clk 0:01:35.8]} 13. gxf6 {[%clk 0:02:40.1]} 13... gxf6 {[%clk 0:01:25]}
14. O-O-O {[%clk 0:02:14.7]} 14... f5 {[%clk 0:01:08.2]} 15. Rhg1+ {[%clk
0:02:10.2]} 15... Kh8 {[%clk 0:01:08.2]} 16. Qh5 {[%clk 0:02:05.9]} 16... Nf6
{[%clk 0:01:04.8]} 17. Qh6 {[%clk 0:02:03.8]} 17... Qe7 {[%clk 0:01:00.7]} 18.
f3 {[%clk 0:01:57.7]} 18... Bd7 {[%clk 0:00:57.3]} 19. Rg5 {[%clk 0:01:55.6]}
19... Rg8 {[%clk 0:00:51.5]} 20. Rdg1 {[%clk 0:01:53.2]} 20... Rxg5 {[%clk
0:00:47.2]} 21. fxg5 {[%clk 0:01:54.1]} 21... Ng8 {[%clk 0:00:46.8]} 22. Qh3
{[%clk 0:01:50.5]} 22... Qg7 {[%clk 0:00:26.8]} 23. Qg3 {[%clk 0:01:40.5]} 23...
Nb5 {[%clk 0:00:24.2]} 24. Nxb5 {[%clk 0:01:33.1]} 24... axb5 {[%clk 0:00:25.1]}
25. a3 {[%clk 0:01:32.2]} 25... b4 {[%clk 0:00:23.1]} 26. axb4 {[%clk
0:01:28.4]} 26... Ra1+ {[%clk 0:00:22.7]} 27. Kd2 {[%clk 0:01:27.6]} 27... Ra2
{[%clk 0:00:18.9]} 28. b3 {[%clk 0:01:17.8]} 28... Be8 {[%clk 0:00:03.8]} 29.
Qe5 {[%clk 0:01:10.2]} 29... Bg6 {[%clk 0:00:04.2]} 30. Nf4 {[%clk 0:01:07.8]}
30... Qxe5 {[%clk 0:00:04.1]} 31. dxe5 {[%clk 0:01:08.7]} 31... Bf7 {[%clk
0:00:04.7]} 32. g6 {[%clk 0:01:07.5]} 32... hxg6 {[%clk 0:00:04.7]} 33. Nxg6+
{[%clk 0:01:08.4]} 33... Kg7 {[%clk 0:00:03.1]} 34. Ne7+ {[%clk 0:01:05.6]}
34... Kf8 {[%clk 0:00:03.7]} 35. Nxg8 {[%clk 0:01:05.9]} 35... Bxg8 {[%clk
0:00:04.6]} 36. h4 {[%clk 0:01:03.8]} 36... Bf7 {[%clk 0:00:04.5]} 37. Rg5
{[%clk 0:01:03.3]} 37... Ra1 {[%clk 0:00:03.8]} 38. Ke3 {[%clk 0:00:53.9]} 38...
Rh1 {[%clk 0:00:04.3]} 39. Kd4 {[%clk 0:00:51.6]} 39... Rxh4+ {[%clk 0:00:04.8]}
40. Kc5 {[%clk 0:00:51.2]} 40... Ke7 {[%clk 0:00:04.2]} 41. b5 {[%clk
0:00:46.6]} 41... cxb5 {[%clk 0:00:03.4]} 42. Bxb5 {[%clk 0:00:47.5]} 42... Rh3
{[%clk 0:00:02.7]} 43. Be2 {[%clk 0:00:44.4]} 43... Rh2 {[%clk 0:00:03.3]} 44.
Bd3 {[%clk 0:00:44.4]} 44... Rf2 {[%clk 0:00:03.4]} 45. Rg3 {[%clk 0:00:42.9]}
45... f4 {[%clk 0:00:04]} 46. Rh3 {[%clk 0:00:42.2]} 46... Rg2 {[%clk
0:00:03.3]} 47. Rh4 {[%clk 0:00:39.2]} 47... Rf2 {[%clk 0:00:03.2]} 48. Rxf4
{[%clk 0:00:38.7]} 48... Bh5 {[%clk 0:00:03.8]} 49. Kd4 {[%clk 0:00:36.3]} 49...
Rxf3 {[%clk 0:00:03.6]} 50. Rxf3 {[%clk 0:00:30.8]} 50... Bxf3 {[%clk
0:00:04.5]} 51. Kc5 {[%clk 0:00:31.7]} 51... Kd7 {[%clk 0:00:04.1]} 52. Kb6
{[%clk 0:00:31.3]} 52... d4 {[%clk 0:00:03.2]} 53. Bb5+ {[%clk 0:00:30.3]} 53...
Ke7 {[%clk 0:00:02.3]} 54. Kc7 {[%clk 0:00:26.9]} 54... Be4 {[%clk 0:00:02.7]}
55. Bd3 {[%clk 0:00:26.6]} 55... Bd5 {[%clk 0:00:03.3]} 56. Kb6 {[%clk
0:00:25.9]} 56... Bc6 {[%clk 0:00:03.6]} 57. Kc5 {[%clk 0:00:25.6]} 57... Kd7
{[%clk 0:00:01.9]} 58. Kxd4 {[%clk 0:00:21.5]} 58... Kc7 {[%clk 0:00:02.1]} 59.
Bc4 {[%clk 0:00:17.3]} 59... Bd7 {[%clk 0:00:02.6]} 60. Bd3 {[%clk 0:00:16.4]}
60... Kc6 {[%clk 0:00:03.1]} 61. c3 {[%clk 0:00:15.6]} 61... b5 {[%clk
0:00:03.5]} 62. Be4+ {[%clk 0:00:15.7]} 62... Kb6 {[%clk 0:00:03.7]} 63. b4
{[%clk 0:00:15.6]} 63... Be8 {[%clk 0:00:03.2]} 64. Ke3 {[%clk 0:00:15.7]} 64...
Bh5 {[%clk 0:00:03.7]} 65. Kf4 {[%clk 0:00:15.8]} 65... Bd1 {[%clk 0:00:04.2]}
66. Kg5 {[%clk 0:00:16]} 66... Kc7 {[%clk 0:00:04]} 67. Kf6 {[%clk 0:00:16]}
67... Kd7 {[%clk 0:00:04.6]} 68. Bg6 {[%clk 0:00:13.6]} 68... Bb3 {[%clk
0:00:04.8]} 69. Bd3 {[%clk 0:00:12.4]} 69... Kc6 {[%clk 0:00:02.4]} 70. Be4+
{[%clk 0:00:11.5]} 70... Kd7 {[%clk 0:00:02.6]} 71. Kf7 {[%clk 0:00:11.8]} 71...
Bc4 {[%clk 0:00:02.8]} 72. Bb7 {[%clk 0:00:11]} 72... Kc7 {[%clk 0:00:02.6]} 73.
Bg2 {[%clk 0:00:10.2]} 73... Kd7 {[%clk 0:00:03.5]} 74. Kf6 {[%clk 0:00:09.7]}
74... Bb3 {[%clk 0:00:03.9]} 75. Bf1 {[%clk 0:00:09.6]} 75... Kc6 {[%clk
0:00:04.1]} 76. Ke7 {[%clk 0:00:09.2]} 76... Bd5 {[%clk 0:00:04.2]} 77. Bd3
{[%clk 0:00:07.6]} 77... Bb3 {[%clk 0:00:04.3]} 78. Be4+ {[%clk 0:00:07.7]}
78... Kc7 {[%clk 0:00:04.8]} 79. Bg2 {[%clk 0:00:06.9]} 79... Bc4 {[%clk
0:00:05.1]} 80. Bh3 {[%clk 0:00:07.1]} 80... Kc6 {[%clk 0:00:02.9]} 81. Bxe6
{[%clk 0:00:07.1]} 81... Bd3 {[%clk 0:00:03.8]} 82. Bb3 {[%clk 0:00:07.1]} 82...
Be4 {[%clk 0:00:03.9]} 83. Ke6 {[%clk 0:00:07]} 83... Bd5+ {[%clk 0:00:04.5]}
84. Bxd5+ {[%clk 0:00:06.8]} 1-0